[Event "MCC Labor Day Schev 2024"]
[Site "New York"]
[Date "2024.09.02"]
[Round "8.2"]
[White "Sarkar, Justin"]
[Black "Gaw, Chloe"]
[Result "1-0"]
[ECO "B66"]
[WhiteElo "2276"]
[BlackElo "1981"]
[Annotator "TA"]
[PlyCount "69"]
[EventDate "2024.08.28"]
[EventType "schev"]
[EventCountry "USA"]
[SourceTitle "playchess.com"]
[Source "ChessBase"]
[SourceQuality "1"]
[TimeControl "5400+30"]

{[%evp 13,69,25,39,14,16,27,39,28,37,35,180,181,170,177,219,215,237,243,232,235,698,654,675,647,710,703,713,710,806,766,814,787,845,843,1058,941,1164,1015,1232,1230,1104,985,992,920,5397,5397,29974,29979,29979,29980,29981,29981,29983,29984,29986,29987,29984,29984]} 1. e4 {[%emt 0:00:11]} c5 {[%emt 0:00:04]} 2. Nf3 {[%emt 0:00:09]} d6 {[%emt 0:00:04]} 3. d4 {[%emt 0:00:15]} cxd4 {[%emt 0:00:05]} 4. Nxd4 {[%emt 0:00:08]} Nf6 {[%emt 0:00:05]} 5. Nc3 {[%emt 0:00:19]} Nc6 {[%emt 0:00:08]} 6. Bg5 {[%emt 0:00:37]} e6 {[%emt 0:00:06]} 7. Qd2 {[%emt 0:00:51]} a6 {[%emt 0:00:08]} 8. Nxc6 {[%emt 0:00:53]} bxc6 {[%emt 0:00:05]} 9. O-O-O {[%emt 0:00:20][%cal Oe4e5] Black must now prevent e5!} Be7 {[%emt 0:02:07]} 10. Bxf6 {[%emt 0:00:18] White is slightly better.} gxf6 {[%emt 0:01:50]} 11. Bc4 {[%emt 0:00:24]} d5 {[%emt 0:03:13] [#]} ({Better is} 11... Bb7 $14) 12. exd5 $1 $18 {[%emt 0:00:26]} cxd5 {[%emt 0:00:35] [#]} 13. Nxd5 {[%emt 0:02:29][%mdl 512]} exd5 {[%emt 0:14:12]} (13... Bb7 14. Nxe7) 14. Bxd5 {[%emt 0:00:34]} Ra7 {[%emt 0:00:50] aiming for ...0-0.} 15. Bc6+ {[%emt 0:01:07]} Bd7 {[%emt 0:04:43]} 16. Qe3 {[%emt 0:02:47]} Rc7 {[%emt 0:02:29] [#]} (16... Qb8 17. Rxd7 Rxd7) 17. Rxd7 $1 {[%emt 0:00:36]} Qxd7 {[%emt 0:08:50]} 18. Bxd7+ {[%emt 0:00:09]} Rxd7 {[%emt 0:00:28]} 19. Rd1 {[%emt 0:00:16]} Rxd1+ {[%emt 0:01:56]} 20. Kxd1 {[%emt 0:00:02][%mdl 4096] Endgame. KQ-KRB} Rg8 {[%emt 0:00:11]} 21. Qa7 {[%emt 0:02:07]} Rg5 {[%emt 0:07:02]} 22. Qxa6 {[%emt 0:00:22]} Kf8 {[%emt 0:00:31]} 23. a4 {[%emt 0:04:42][%cal Ba2a4,Ba4a5][%mdl 32]} Kg7 {[%emt 0:01:36]} 24. Qb7 {[%emt 0:00:09]} Bd6 {[%emt 0:01:03]} 25. b4 {[%emt 0:05:35]} Rg4 {[%emt 0:02:37]} 26. c3 {[%emt 0:00:37]} Be5 {[%emt 0:00:23]} 27. a5 {[%emt 0:05:51] Strongly threatening a6.} Bxc3 {[%emt 0:04:18]} 28. a6 {[%emt 0:00:08] a7 would now be deadly.} Bd4 {[%emt 0:03:09]} 29. Qd7 {[%emt 0:00:15]} Re4 {[%emt 0:04:23]} 30. f3 {[%emt 0:00:16] White mates.} Re6 {[%emt 0:01:20]} 31. Qxd4 {[%emt 0:00:10]} Rxa6 {[%emt 0:00:11]} 32. b5 {[%emt 0:00:05][%cal Bb4b5,Bb5b6][%mdl 32]} Re6 {[%emt 0:02:14]} 33. b6 {[%emt 0:00:34]} Re7 {[%emt 0:00:10]} 34. Qd8 {[%emt 0:00:19]} Rb7 {[%emt 0:00:13] [#]} 35. Qc7 $3 {[%emt 0:00:07] White took control after the opening.   Weighted Error Value: White=0.02 (flawless) /Black=1.22.  Mistake:       	---       	Black=2      OK:         	White=4     	---        Best:        	White=1     	Black=1      Strong:       	White=2     	---        Brilliant:      	White=1     	---} 1-0

[Event "MCC Labor Day Schev 2024"]
[Site "New York"]
[Date "2024.09.02"]
[Round "8.3"]
[White "Mottola, Max"]
[Black "Podavonov, Alisher"]
[Result "1-0"]
[ECO "B13"]
[WhiteElo "2103"]
[BlackElo "2140"]
[Annotator "TA"]
[PlyCount "139"]
[EventDate "2024.08.28"]
[EventType "schev"]
[EventCountry "USA"]
[SourceTitle "playchess.com"]
[Source "ChessBase"]
[SourceQuality "1"]
[TimeControl "5400+30"]

{[%evp 26,139,9,12,5,15,26,-36,-6,-38,-26,-25,-24,-31,-4,-11,0,0,0,0,0,-21,-20,-26,-20,-18,40,40,79,79,88,83,79,79,87,87,79,86,86,86,86,86,86,86,89,88,158,83,209,203,293,293,278,278,262,262,237,227,1649,931,4134,3545,29962,29961,29961,29956,29961,29962,29964,29971,29969,29972,29972,29972,29971,4622,29976,29977,29978,29979,29979,29980,29980,29981,29981,29981,29981,29982,29986,29987,29987,29988,29989,29989,29990,29991,29991,29990,29990,29991,29992,29993,29993,29988,29994,29995,29995,29996,29996,29997,29997,29997,29997,29998,29998,29999]} 1. e4 {[%emt 0:07:01]} c6 {[%emt 0:07:13]} 2. d4 {[%emt 0:00:41]} d5 {[%emt 0:00:11]} 3. exd5 {[%emt 0:00:10]} cxd5 {[%emt 0:00:04]} 4. Bd3 {[%emt 0:00:10]} Nc6 {[%emt 0:00:02]} 5. c3 {[%emt 0:00:08]} Qc7 {[%emt 0:00:03]} 6. Na3 {[%emt 0:01:40]} a6 {[%emt 0:06:15]} 7. Nc2 {[%emt 0:01:01]} Nf6 {[%emt 0:02:38]} 8. h3 {[%emt 0:00:14]} e5 {[%emt 0:03:03]} 9. dxe5 {[%emt 0:01:27]} Nxe5 {[%emt 0:00:03]} 10. Nf3 {[%emt 0:01:05]} Nxd3+ {[%emt 0:02:20]} 11. Qxd3 {[%emt 0:00:14]} Qc4 {[%emt 0:00:35]} 12. Qe3+ {[%emt 0:06:26]} Be7 {[%emt 0:01:21]} 13. Ncd4 {[%emt 0:03:00]} O-O {[%emt 0:01:00]} 14. Ne5 {[%emt 0:02:02]} (14. Qxe7 Re8 $17) 14... Qc7 {[%emt 0:00:39]} 15. O-O {[%emt 0:04:15]} Bd6 {[%emt 0:04:31]} 16. Nef3 {[%emt 0:01:24]} ({White should play} 16. Nd3 $1 $11) 16... h6 {[%emt 0:03:02]} 17. Nh4 {[%emt 0:04:50]} Re8 {[%emt 0:06:36]} 18. Qf3 {[%emt 0:02:18]} Ne4 {[%emt 0:00:25]} 19. Ndf5 {[%emt 0:07:57]} Be5 {[%emt 0:01:19]} 20. Be3 {[%emt 0:03:05]} Be6 {[%emt 0:04:36]} 21. Rad1 {[%emt 0:01:41]} b5 {[%emt 0:09:56]} 22. Bd4 {[%emt 0:05:27]} a5 {[%emt 0:01:23]} 23. Qh5 {[%emt 0:09:48]} Bxd4 {[%emt 0:01:14]} 24. Rxd4 {[%emt 0:01:03]} b4 {[%emt 0:01:12]} 25. c4 {[%emt 0:09:26]} g6 {[%emt 0:15:22]} (25... Nf6 $11 26. Nxh6+ gxh6 27. Qxh6 Ne4 (27... Qe5 $2 28. Nf3 $18)) 26. Nxg6 $14 {[%emt 0:11:35]} (26. Nxh6+ Kg7 27. Qf3 Ng5 $11 (27... Kxh6 28. cxd5 Bxd5 29. Rxd5 $14)) (26. Qxh6 Bxf5 27. Rxd5 (27. Nxf5 $2 gxf5 28. Rxd5 Re6 $19) 27... Re6 (27... Qxc4 28. Rxf5 Ra6 29. Rf4 $15) (27... Be6 28. Rd4 $17) 28. Nxf5 gxf5 $19) 26... Bxf5 {[%emt 0:00:22]} 27. Qxf5 {[%emt 0:00:41]} fxg6 {[%emt 0:01:51]} (27... Qb6 $2 28. Ne5 (28. Rxd5 $2 Qxg6 29. Qxg6+ fxg6 $19) 28... Qe6 29. Qxe6 Rxe6 30. Ng4 (30. cxd5 Rxe5 31. Re1 Rae8 $11) (30. Rxd5 a4 $18) 30... dxc4 31. Rxe4 $18 (31. Rxc4 $2 Nd2 $19)) 28. Qxd5+ {[%emt 0:00:08]} Qf7 {[%emt 0:00:07]} 29. Rxe4 {[%emt 0:00:07]} Qxd5 {[%emt 0:00:02]} 30. Rxe8+ {[%emt 0:00:08]} Rxe8 {[%emt 0:00:01]} 31. cxd5 {[%emt 0:00:08]} Re2 {[%emt 0:00:22]} 32. Rd1 {[%emt 0:03:02]} Kf7 {[%emt 0:00:01]} (32... Rxb2 33. d6 Kf7 34. d7 Re2 35. d8=Q (35. d8=B Rxa2 36. Rb1 Ke6 $16) 35... Re7 36. Rd3 (36. Qxa5 Kf6 37. Qxb4 g5 38. Rd8 Kf7 39. g4 h5 40. Qb3+ Kf6 41. Qf3+ Kg6) (36. Qd5+ Kg7 37. Qxa5 Kf6 38. Qxb4 g5 39. Rd6+ Kf7 40. Qc3 Kg8) 36... Re1+ 37. Kh2) 33. d6 {[%emt 0:01:11]} Ke8 {[%emt 0:00:01]} 34. Rd5 {[%emt 0:02:29]} Rxb2 {[%emt 0:06:11]} 35. Rxa5 {[%emt 0:00:17]} Rb1+ {[%emt 0:00:09]} 36. Kh2 {[%emt 0:00:06]} Ra1 {[%emt 0:00:05]} (36... Kd7 $16 {is a better defense.}) 37. Ra4 $18 {[%emt 0:04:56]} Kd7 {[%emt 0:09:56]} (37... Rb1 $142 38. Ra7 Rd1) 38. Rxb4 $18 {[%emt 0:00:39]} Rxa2 {[%emt 0:00:01]} 39. Rb7+ {[%emt 0:05:10]} Ke6 {[%emt 0:00:11]} 40. d7 {[%emt 0:01:19]} Rd2 {[%emt 0:00:15]} 41. Kg3 {[%emt 0:00:43]} Ke7 $2 {[%emt 0:02:17]} (41... Rd5 42. f3 (42. Rb6+ Kf7 $18) 42... Rg5+ 43. Kf2 Rd5) 42. d8=N+ {[%emt 0:01:11]} ({Less strong is} 42. Rb6 Kf7 43. Rb7 Ke6 $18) 42... Kxd8 {[%emt 0:00:09]} 43. Rb6 {[%emt 0:00:15]} Rd3+ {[%emt 0:01:48]} 44. f3 {[%emt 0:00:17]} h5 {[%emt 0:06:37]} 45. Rxg6 {[%emt 0:00:07]} Rd2 {[%emt 0:00:04]} 46. Rg5 {[%emt 0:00:24]} h4+ {[%emt 0:00:08]} 47. Kxh4 {[%emt 0:00:05]} Ke7 {[%emt 0:00:08]} 48. g3 {[%emt 0:00:41]} Kf6 {[%emt 0:00:04]} 49. f4 {[%emt 0:00:10]} Rd3 {[%emt 0:00:05]} 50. Ra5 {[%emt 0:00:10]} (50. Kg4 $142 Kf7 51. h4 Ke6 52. h5 Rd7 53. Rg6+ Kd5 54. h6 Rc7 55. Rg7) 50... Kg6 {[%emt 0:00:06]} 51. Kg4 {[%emt 0:00:10]} Rb3 {[%emt 0:00:05]} 52. Ra6+ {[%emt 0:00:06]} Kg7 {[%emt 0:00:02]} 53. h4 {[%emt 0:00:20]} Rc3 {[%emt 0:00:01]} 54. f5 {[%emt 0:00:49]} Rb3 {[%emt 0:00:01]} 55. Kf4 {[%emt 0:00:08]} Rb4+ {[%emt 0:00:09]} 56. Kg5 {[%emt 0:00:05]} Rb3 {[%emt 0:00:15]} 57. Ra7+ {[%emt 0:00:06]} Kf8 {[%emt 0:00:20]} 58. g4 {[%emt 0:00:10]} Rb6 {[%emt 0:00:02]} 59. f6 {[%emt 0:00:18]} Kg8 {[%emt 0:00:19]} 60. Kg6 {[%emt 0:00:34]} Rb8 {[%emt 0:00:01]} 61. Rg7+ {[%emt 0:00:21]} Kf8 {[%emt 0:00:06]} 62. Rh7 {[%emt 0:00:07]} Kg8 {[%emt 0:00:10]} 63. f7+ {[%emt 0:00:06]} Kf8 {[%emt 0:00:03]} 64. Rh8+ {[%emt 0:00:06]} Ke7 {[%emt 0:00:02]} 65. Rxb8 {[%emt 0:00:08]} Kd7 {[%emt 0:00:03]} 66. f8=Q {[%emt 0:00:15]} Kc6 {[%emt 0:00:01]} 67. Qb4 {[%emt 0:00:51]} Kd7 {[%emt 0:00:02]} 68. Qb5+ {[%emt 0:00:12]} Kd6 {[%emt 0:00:02]} 69. Rd8+ {[%emt 0:00:08]} Kc7 {[%emt 0:00:06]} 70. Rd7+ {[%emt 0:00:03]} 1-0

[Event "MCC Labor Day Schev 2024"]
[Site "New York"]
[Date "2024.09.02"]
[Round "8.4"]
[White "Colas, Joshua"]
[Black "Patel, Maahir M"]
[Result "1-0"]
[ECO "E32"]
[WhiteElo "2224"]
[BlackElo "2005"]
[Annotator "RC"]
[PlyCount "79"]
[EventDate "2024.08.28"]
[EventType "schev"]
[EventCountry "USA"]
[SourceTitle "playchess.com"]
[Source "ChessBase"]
[SourceQuality "1"]
[TimeControl "5400+30"]

1. d4 {[%emt 0:03:08]} Nf6 {[%emt 0:00:34]} 2. c4 {[%emt 0:00:13]} e6 {[%emt 0:00:27]} 3. Nc3 {[%emt 0:00:06]} Bb4 {[%emt 0:00:53]} 4. Qc2 {[%emt 0:00:08]} O-O {[%emt 0:03:35]} 5. Bg5 {[%emt 0:00:21]} d5 {[%emt 0:01:04]} 6. e3 {[%emt 0:00:07]} h6 {[%emt 0:02:07]} 7. Bh4 {[%emt 0:00:09]} Nbd7 {[%emt 0:02:35]} 8. Bd3 {[%emt 0:01:13]} a6 {[%emt 0:01:50]} 9. cxd5 {[%emt 0:00:46]} exd5 {[%emt 0:00:17]} 10. Nf3 {[%emt 0:00:07]} Re8 {[%emt 0:01:56]} 11. O-O {[%emt 0:00:20]} c6 {[%emt 0:00:30]} 12. a3 {[%emt 0:01:54]} Be7 {[%emt 0:00:49]} 13. b4 {[%emt 0:00:15]} Ne4 {[%emt 0:01:26]} 14. Bxe7 {[%emt 0:00:09]} Qxe7 {[%emt 0:00:01]} 15. Bxe4 {[%emt 0:00:10]} dxe4 {[%emt 0:00:07]} 16. Nd2 {[%emt 0:00:01]} Nf6 {[%emt 0:01:10]} 17. Rfb1 {[%emt 0:00:39]} Bf5 {[%emt 0:04:47]} 18. Na4 {[%emt 0:00:51]} Be6 {[%emt 0:02:18]} 19. Qc5 {[%emt 0:01:50]} Bd5 {[%emt 0:02:49]} 20. Nb6 {[%emt 0:03:05]} Rab8 {[%emt 0:01:34]} 21. a4 {[%emt 0:00:13]} Qe6 {[%emt 0:03:26]} 22. b5 {[%emt 0:00:34]} Nd7 {[%emt 0:01:58]} 23. Nxd7 {[%emt 0:00:06]} Qxd7 {[%emt 0:00:04]} 24. bxa6 {[%emt 0:00:08]} bxa6 {[%emt 0:00:26]} 25. Rb6 {[%emt 0:00:11]} Rxb6 {[%emt 0:01:10]} 26. Qxb6 {[%emt 0:00:01]} Qd6 {[%emt 0:04:39]} 27. a5 {[%emt 0:03:47]} Rb8 {[%emt 0:00:24]} 28. Qxa6 {[%emt 0:00:09]} Rb2 {[%emt 0:02:54]} 29. Nc4 {[%emt 0:00:34]} Bxc4 {[%emt 0:02:42]} 30. Qxc4 {[%emt 0:00:01]} Rb4 {[%emt 0:01:32]} 31. Qc2 {[%emt 0:01:13]} Qd5 {[%emt 0:06:41]} 32. a6 {[%emt 0:00:12]} Rb8 {[%emt 0:00:12]} 33. a7 {[%emt 0:01:05]} Ra8 {[%emt 0:00:02]} 34. h3 {[%emt 0:00:59]} f5 {[%emt 0:01:34]} 35. Qb2 {[%emt 0:00:08]} Qb5 {[%emt 0:01:08]} 36. Qa2+ {[%emt 0:01:30]} Kh8 {[%emt 0:00:47]} 37. Qa3 {[%emt 0:01:26]} Qb6 {[%emt 0:02:30]} 38. Qd6 {[%emt 0:02:18]} Qb2 {[%emt 0:02:10]} 39. Ra5 {[%emt 0:04:49]} Qe2 {[%emt 0:02:42]} 40. Qb8+ {[%emt 0:00:27]} 1-0

[Event "MCC Labor Day Schev 2024"]
[Site "New York"]
[Date "2024.09.02"]
[Round "8.4"]
[White "Almeida Saenz, Alfonso"]
[Black "Shangin, Lev"]
[Result "1-0"]
[ECO "E32"]
[WhiteElo "2202"]
[BlackElo "1974"]
[Annotator "TA"]
[PlyCount "79"]
[EventDate "2024.08.28"]
[EventType "schev"]
[EventCountry "USA"]
[SourceTitle "playchess.com"]
[Source "ChessBase"]
[SourceQuality "1"]
[TimeControl "5400+30"]

{[%evp 10,79,35,7,33,27,25,0,48,44,45,41,42,44,45,32,46,12,45,17,24,24,23,18,37,23,27,0,28,15,42,25,52,38,54,60,127,115,125,115,129,84,80,85,73,21,20,20,244,246,246,256,390,323,413,413,413,323,323,316,595,510,482,502,629,495,652,465,432,420,29985,29984]} 1. d4 {[%emt 0:03:08]} Nf6 {[%emt 0:00:34]} 2. c4 {[%emt 0:00:13]} e6 {[%emt 0:00:27]} 3. Nc3 {[%emt 0:00:06]} Bb4 {[%emt 0:00:53]} 4. Qc2 {[%emt 0:00:08]} O-O {[%emt 0:03:35]} 5. Bg5 {[%emt 0:00:21]} d5 {[%emt 0:01:04]} 6. e3 {[%emt 0:00:07]} h6 {[%emt 0:02:07]} 7. Bh4 {[%emt 0:00:09]} Nbd7 {[%emt 0:02:35]} 8. Bd3 {[%emt 0:01:13]} a6 {[%emt 0:01:50]} (8... dxc4 $11 9. Bxc4 c5) 9. cxd5 $14 {[%emt 0:00:46]} exd5 {[%emt 0:00:17]} 10. Nf3 {[%emt 0:00:07]} Re8 {[%emt 0:01:56]} 11. O-O {[%emt 0:00:20]} c6 {[%emt 0:00:30]} 12. a3 {[%emt 0:01:54]} Be7 {[%emt 0:00:49]} 13. b4 {[%emt 0:00:15]} Ne4 {[%emt 0:01:26]} 14. Bxe7 {[%emt 0:00:09]} Qxe7 {[%emt 0:00:01]} 15. Bxe4 {[%emt 0:00:10]} dxe4 {[%emt 0:00:07]} 16. Nd2 {[%emt 0:00:01][%cal Rc3e4]} Nf6 {[%emt 0:01:10]} 17. Rfb1 {[%emt 0:00:39]} Bf5 {[%emt 0:04:47]} 18. Na4 {[%emt 0:00:51]} Be6 {[%emt 0:02:18]} 19. Qc5 {[%emt 0:01:50]} ({Much weaker is} 19. Nxe4 Bf5 20. Nxf6+ Qxf6 $17) 19... Bd5 {[%emt 0:02:49]} 20. Nb6 {[%emt 0:03:05]} Rab8 {[%emt 0:01:34]} 21. a4 {[%emt 0:00:13]} Qe6 {[%emt 0:03:26]} 22. b5 {[%emt 0:00:34]} Nd7 {[%emt 0:01:58]} (22... axb5 $14 23. axb5 cxb5) 23. Nxd7 $16 {[%emt 0:00:06]} Qxd7 {[%emt 0:00:04] [#]} 24. bxa6 {[%emt 0:00:08]} bxa6 {[%emt 0:00:26]} 25. Rb6 {[%emt 0:00:11]} Rxb6 {[%emt 0:01:10]} 26. Qxb6 {[%emt 0:00:01]} Qd6 {[%emt 0:04:39]} 27. a5 {[%emt 0:03:47]} ({White should play} 27. Qxa6 $16 {Hoping for Nc4.} Qb4 28. Qe2) 27... Rb8 $11 {[%emt 0:00:24]} 28. Qxa6 {[%emt 0:00:09] And now Nc4 would win.} Rb2 $2 {[%emt 0:02:54] [#] Black cannot hold the game after this.} (28... Qb4 $11 {and Black stays safe.} 29. Qe2 Rb5) 29. Nc4 $1 $18 {[%emt 0:00:34]} Bxc4 {[%emt 0:02:42]} 30. Qxc4 {[%emt 0:00:01][%mdl 4096] Endgame. KQR-KQR} Rb4 {[%emt 0:01:32]} (30... Qd5 $142 31. Qxd5 cxd5) 31. Qc2 {[%emt 0:01:13]} Qd5 {[%emt 0:06:41]} 32. a6 {[%emt 0:00:12][%cal Ba5a6,Ba6a7][%mdl 32] Black must now prevent a7.} Rb8 {[%emt 0:00:12]} 33. a7 {[%emt 0:01:05]} Ra8 {[%emt 0:00:02]} 34. h3 {[%emt 0:00:59]} f5 $2 {[%emt 0:01:34]} (34... Qd7 {is a better defense.} 35. Qxe4 Qb7) 35. Qb2 {[%emt 0:00:08]} Qb5 {[%emt 0:01:08]} 36. Qa2+ {[%emt 0:01:30]} Kh8 {[%emt 0:00:47]} 37. Qa3 {[%emt 0:01:26]} Qb6 {[%emt 0:02:30]} 38. Qd6 {[%emt 0:02:18] aiming for d5.} Qb2 {[%emt 0:02:10]} 39. Ra5 {[%emt 0:04:49]} Qe2 {[%emt 0:02:42]} (39... Qb6 $18) 40. Qb8+ {[%emt 0:00:27] Weighted Error Value: White=0.26 (precise) /Black=0.74.  Loses game:     	---       	Black=1      Mistake:       	White=1     	Black=5      Inaccurate:     	White=4     	Black=5      OK:         	White=13    	Black=9      Best:        	White=1     	Black=1      Strong:       	White=1     	---} 1-0

[Event "MCC Labor Day Schev 2024"]
[Site "New York"]
[Date "2024.09.02"]
[Round "8.5"]
[White "Colas, Joshua"]
[Black "Patel, Maahir M"]
[Result "1-0"]
[ECO "A28"]
[WhiteElo "2224"]
[BlackElo "2005"]
[Annotator "TA"]
[PlyCount "41"]
[EventDate "2024.08.28"]
[EventType "schev"]
[EventCountry "USA"]
[SourceTitle "playchess.com"]
[Source "ChessBase"]
[SourceQuality "1"]
[TimeControl "5400+30"]

{[%evp 9,41,-12,63,20,81,65,64,51,72,70,62,61,61,64,68,60,64,33,60,23,42,20,23,0,0,0,9,15,12,20,120,110,535,508]} 1. c4 {[%emt 0:17:41]} e5 {[%emt 0:00:29]} 2. Nc3 {[%emt 0:00:08]} Nf6 {[%emt 0:00:06]} 3. Nf3 {[%emt 0:00:04]} Nc6 {[%emt 0:00:09]} 4. e4 {[%emt 0:00:35]} h6 {[%emt 0:00:37]} 5. d4 {[%emt 0:01:53]} d6 {[%emt 0:00:13]} (5... exd4 $11 6. Nxd4 Bb4) 6. h3 {[%emt 0:01:25]} g6 {[%emt 0:02:58]} (6... exd4 $11 7. Nxd4 Nxd4 8. Qxd4 Be7) 7. Be3 {[%emt 0:02:44]} exd4 {[%emt 0:00:51]} 8. Nxd4 {[%emt 0:00:11] White is slightly better.} Bg7 {[%emt 0:00:24]} 9. Nxc6 {[%emt 0:00:26]} bxc6 {[%emt 0:00:06]} 10. Qd2 {[%emt 0:00:11] White is more active.} Qe7 {[%emt 0:00:22]} 11. Bd3 {[%emt 0:00:26]} a5 {[%emt 0:01:49]} 12. O-O {[%emt 0:00:54]} Nd7 {[%emt 0:03:55] Repels c5} 13. Be2 {[%emt 0:07:45]} h5 {[%emt 0:04:19]} 14. Rac1 {[%emt 0:06:06]} O-O {[%emt 0:00:56]} 15. b3 {[%emt 0:00:15]} Nc5 {[%emt 0:02:39]} 16. Bf3 {[%emt 0:06:35][%cal Oe4e5]} Be5 {[%emt 0:07:56]} 17. Rfe1 {[%emt 0:00:48]} Ne6 {[%emt 0:01:50]} 18. Bd1 {[%emt 0:02:52]} Qh4 {[%emt 0:06:18]} 19. Ne2 {[%emt 0:01:10]} g5 {[%emt 0:05:03]} (19... Re8 $11 {remains equal.}) 20. Nd4 $16 {[%emt 0:03:18]} Nxd4 {[%emt 0:03:38][%mdl 8192] [#]} (20... Bxd4 $16 21. Bxd4 f6) 21. Bxg5 {[%emt 0:01:15] Weighted Error Value: White=0.12 (very precise) /Black=0.50.  Loses game:     	---       	Black=1      Mistake:       	---       	Black=2      Inaccurate:     	White=2     	Black=1      OK:         	White=5     	Black=4      Best:        	White=1     	---} (21. Bxd4 Qf4 22. Qxf4 Bxf4 $16) 1-0

[Event "MCC Labor Day Schev 2024"]
[Site "New York"]
[Date "2024.09.02"]
[Round "8.5"]
[White "Almeida Saenz, Alfonso"]
[Black "Shangin, Lev"]
[Result "1-0"]
[ECO "A28"]
[WhiteElo "2202"]
[BlackElo "1974"]
[Annotator "TA"]
[PlyCount "41"]
[EventDate "2024.08.28"]
[EventType "schev"]
[EventCountry "USA"]
[SourceTitle "playchess.com"]
[Source "ChessBase"]
[SourceQuality "1"]
[TimeControl "5400+30"]

{[%evp 9,41,-4,58,35,76,60,53,54,55,56,47,47,58,62,70,45,80,31,56,11,19,6,20,0,0,0,28,13,23,21,106,110,542,539]} 1. c4 {[%emt 0:17:41]} e5 {[%emt 0:00:29]} 2. Nc3 {[%emt 0:00:08]} Nf6 {[%emt 0:00:06]} 3. Nf3 {[%emt 0:00:04]} Nc6 {[%emt 0:00:09]} 4. e4 {[%emt 0:00:35]} h6 {[%emt 0:00:37]} 5. d4 {[%emt 0:01:53]} d6 {[%emt 0:00:13]} (5... exd4 $11 6. Nxd4 Bb4) 6. h3 {[%emt 0:01:25]} g6 {[%emt 0:02:58]} 7. Be3 {[%emt 0:02:44]} exd4 {[%emt 0:00:51]} 8. Nxd4 {[%emt 1:10:00] White is slightly better.} Bg7 {[%emt 0:00:24]} 9. Nxc6 {[%emt 1:10:19]} bxc6 {[%emt 0:00:06]} 10. Qd2 {[%emt 0:00:11]} Qe7 {[%emt 0:00:22]} 11. Bd3 {[%emt 0:00:26]} a5 {[%emt 0:01:49]} 12. O-O {[%emt 1:10:46][%cal Oc4c5]} Nd7 {[%emt 0:03:55]} 13. Be2 {[%emt 0:07:45]} (13. Rad1 $16) 13... h5 {[%emt 0:04:19]} 14. Rac1 {[%emt 0:06:06]} O-O {[%emt 0:00:56]} 15. b3 {[%emt 0:00:15]} Nc5 {[%emt 0:02:39]} 16. Bf3 {[%emt 0:06:35][%cal Oe4e5]} Be5 {[%emt 0:07:56]} 17. Rfe1 {[%emt 0:00:48]} Ne6 {[%emt 0:01:50]} 18. Bd1 {[%emt 0:02:52]} Qh4 {[%emt 0:06:18]} 19. Ne2 {[%emt 0:01:10]} g5 {[%emt 0:05:03]} (19... c5 $11 {remains equal.}) 20. Nd4 {[%emt 0:48:21]} Nxd4 {[%emt 0:03:38][%mdl 8192] [#]} (20... Bxd4 $16 21. Bxd4 f6) 21. Bxg5 {[%emt 0:01:15] Weighted Error Value: White=0.13 (very precise) /Black=0.51.  Loses game:     	---       	Black=1      Mistake:       	White=1     	Black=1      Inaccurate:     	White=1     	Black=3      OK:         	White=4     	Black=3      Best:        	White=1     	---} (21. Bxd4 Qf4 22. Qxf4 Bxf4 $16) 1-0